[Event "Charlotte Spring GM Invitational 2021"]
[Site "Charlotte"]
[Date "2021.03.21"]
[Round "8.2"]
[White "Wang, Kevin"]
[Black "Yip, Carissa"]
[Result "1/2-1/2"]
[ECO "D03"]
[WhiteElo "2402"]
[BlackElo "2423"]
[Annotator "ChessBase"]
[PlyCount "74"]
[EventDate "2021.03.17"]
[EventType "tourn"]
[EventCountry "USA"]
[SourceTitle "playchess.com"]
[Source "ChessBase"]
[SourceQuality "1"]
[TimeControl "5400+30"]

1. d4 {[%emt 0:00:28]} Nf6 {[%emt 0:05:54]} 2. Bg5 {[%emt 0:00:22]} e6 {[%emt 0:04:23]} 3. Nd2 {[%emt 0:00:30]} d5 {[%emt 0:00:44]} 4. e3 {[%emt 0:00:55]} Be7 {[%emt 0:00:31]} 5. Ngf3 {[%emt 0:01:06]} Nbd7 {[%emt 0:00:36]} 6. Bd3 {[%emt 0:01:07]} c5 {[%emt 0:01:52]} 7. c3 {[%emt 0:00:42]} O-O {[%emt 0:00:57]} 8. O-O {[%emt 0:04:40]} b6 {[%emt 0:03:27]} 9. Ne5 {[%emt 0:09:56]} Bb7 {[%emt 0:07:46]} 10. f4 {[%emt 0:06:47]} Ne4 {[%emt 0:04:53]} 11. Bxe7 {[%emt 0:09:05]} Qxe7 {[%emt 0:00:02]} 12. Nxd7 {[%emt 0:00:34]} Qxd7 {[%emt 0:00:06]} 13. Rf3 {[%emt 0:04:01]} Rac8 {[%emt 0:13:00]} 14. Rh3 {[%emt 0:02:28]} f6 {[%emt 0:01:50]} 15. Qc2 {[%emt 0:05:50]} Qc6 {[%emt 0:01:21]} 16. Rf1 {[%emt 0:07:40]} h6 {[%emt 0:04:06]} 17. f5 {[%emt 0:09:35]} exf5 {[%emt 0:07:30]} 18. Rxf5 {[%emt 0:01:27]} Qe6 {[%emt 0:02:24]} 19. Rf1 {[%emt 0:01:57]} Rce8 {[%emt 0:01:43]} 20. Nxe4 {[%emt 0:02:21]} dxe4 {[%emt 0:00:07]} 21. Bb5 {[%emt 0:00:25]} Bc6 {[%emt 0:03:03]} 22. Bxc6 {[%emt 0:02:48]} Qxc6 {[%emt 0:00:01]} 23. Rh5 {[%emt 0:01:06]} cxd4 {[%emt 0:01:33]} 24. exd4 {[%emt 0:00:47]} Re7 {[%emt 0:01:46]} 25. Qe2 {[%emt 0:01:52]} Qe6 {[%emt 0:02:51]} 26. d5 {[%emt 0:01:31]} Qd6 {[%emt 0:00:06]} 27. Qe3 {[%emt 0:00:57]} Re5 {[%emt 0:04:18]} 28. Rxe5 {[%emt 0:00:06]} Qxe5 {[%emt 0:00:03]} 29. Rd1 {[%emt 0:00:50]} f5 {[%emt 0:02:06]} 30. d6 {[%emt 0:01:02]} Rd8 {[%emt 0:00:08]} 31. d7 {[%emt 0:01:53]} Qe6 {[%emt 0:00:06]} 32. Qd4 {[%emt 0:01:36]} Kf7 {[%emt 0:03:52]} 33. c4 {[%emt 0:01:37]} e3 {[%emt 0:01:07]} 34. Re1 {[%emt 0:01:56]} Rxd7 {[%emt 0:01:22]} 35. Qxe3 {[%emt 0:00:03]} Qxe3+ {[%emt 0:00:04]} 36. Rxe3 {[%emt 0:00:02]} Rd2 {[%emt 0:01:31]} 37. Ra3 {[%emt 0:00:49]} Rxb2 {[%emt 0:01:12]} 1/2-1/2

[Event "Charlotte Spring GM Invitational 2021"]
[Site "Charlotte"]
[Date "2021.03.21"]
[Round "8.4"]
[White "Mishra, Abhimanyu"]
[Black "Gauri, Shankar"]
[Result "1/2-1/2"]
[ECO "E16"]
[WhiteElo "2370"]
[BlackElo "2353"]
[Annotator "ChessBase"]
[PlyCount "54"]
[EventDate "2021.03.17"]
[EventType "tourn"]
[EventCountry "USA"]
[SourceTitle "playchess.com"]
[Source "ChessBase"]
[SourceQuality "1"]
[TimeControl "5400+30"]

1. d4 {[%emt 0:00:00]} Nf6 {[%emt 0:03:53]} 2. c4 {[%emt 0:00:00]} e6 {[%emt 0:00:14]} 3. Nf3 {[%emt 0:00:00]} b6 {[%emt 0:00:10]} 4. g3 {[%emt 0:00:00]} Bb4+ {[%emt 0:00:39]} 5. Bd2 {[%emt 0:00:12]} Be7 {[%emt 0:00:31]} 6. Nc3 {[%emt 0:02:05]} Bb7 {[%emt 0:00:44]} 7. Bg2 {[%emt 0:04:44]} c6 {[%emt 0:00:45]} 8. Bf4 {[%emt 0:00:21]} d5 {[%emt 0:06:20]} 9. cxd5 {[%emt 0:03:03]} cxd5 {[%emt 0:02:55]} 10. Nb5 {[%emt 0:01:04]} Bb4+ {[%emt 0:04:40]} 11. Nd2 {[%emt 0:06:34]} Na6 {[%emt 0:13:43]} 12. Nc7+ {[%emt 0:07:41]} Nxc7 {[%emt 0:00:30]} 13. Qa4+ {[%emt 0:00:03]} Qd7 {[%emt 0:00:49]} 14. Qxb4 {[%emt 0:00:09]} Na6 {[%emt 0:00:28]} 15. Qa3 {[%emt 0:15:46]} Nh5 {[%emt 0:19:23]} 16. Be3 {[%emt 0:04:56]} Qe7 {[%emt 0:04:40]} 17. Qa4+ {[%emt 0:03:46]} Qd7 {[%emt 0:00:03]} 18. Qb3 {[%emt 0:12:09]} O-O {[%emt 0:00:56]} 19. O-O {[%emt 0:01:36]} Nf6 {[%emt 0:01:11]} 20. Rac1 {[%emt 0:06:04]} Rfc8 {[%emt 0:00:38]} 21. Nb1 {[%emt 0:01:40]} Ne4 {[%emt 0:02:12]} 22. Bf4 {[%emt 0:29:07]} Nc7 {[%emt 0:35:36]} 23. Nc3 {[%emt 0:00:00]} Nxc3 {[%emt 0:00:00]} 24. Qxc3 {[%emt 0:00:00]} Nb5 {[%emt 0:00:00]} 25. Qd3 {[%emt 0:00:00]} h6 {[%emt 0:00:00]} 26. Rfe1 {[%emt 0:00:00]} Nd6 {[%emt 0:00:00]} 27. b3 {[%emt 0:00:00]} a5 {[%emt 0:00:00]} 1/2-1/2